Cogmind - Beta 14 @@@ ROGUE MODE // 2024.10.09 @ 21:55:07 Player: KURIIRI Result: Destroyed by G-34 Mercenary with Small Laser Performance ------------- Evolutions (0) 0 Regions Visited (1) 200 Robots Destroyed (13) 65 Value Destroyed (282) 282 Prototype IDs (2) 40 Alien Tech Used (0) 0 Bonus (0) 0 TOTAL SCORE: 587 Bonus ------- None Cogmind --------- Core Integrity 0/250 Matter 280/300 Energy 31/100 System Corruption 0% Temperature Warm (125) Movement Core (350) Ox6 Location -10/Materials Parts ------- > --- POWER (1) -------- (None) > --- PROPULSION (2) --- (None) > --- UTILITY (2) ------ Large Storage Unit Signal Interpreter > --- WEAPON (2) ------- Datajack > --- INVENTORY (15) --- Seismic Detector Peak State ------------ > --- POWER ------------ (None) > --- PROPULSION ------- Flight Unit > --- UTILITY ---------- Large Storage Unit Signal Interpreter > --- WEAPON ----------- EM Pulse Gun Medium Laser > --- INVENTORY -------- Seismic Detector Medium Laser Datajack [Rating: 5] Favorites ----------- Power None Propulsion Flight Unit Flight Unit Flight Unit Utility Seismic Detector Device Seismic Detector Storage Large Storage Unit Processor Signal Interpreter Weapon Medium Laser Energy Gun Medium Laser Special Melee Weapon Datajack Build | -11 -10 ------- Run | Yrd Mat Slots Evolved . | . . Power . | . . Propulsion . | . . Utility . | . . Weapon . | . . Parts Attached 13 | 1 12 Power . | . . Engine . | . . Core . | . . Reactor . | . . Propulsion 1 | . 1 Treads . | . . Leg . | . . Wheel . | . . Hover . | . . Flight 1 | . 1 Utility 5 | . 5 Device 1 | . 1 Storage 3 | . 3 Processor 1 | . 1 Hackware . | . . Protection . | . . Artifact . | . . Weapon 7 | 1 6 Energy Gun 5 | 1 4 Energy Cannon . | . . Ballistic Gun . | . . Ballistic Cannon . | . . Launcher . | . . Special Weapon . | . . Impact Weapon . | . . Slashing Weapon . | . . Piercing Weapon . | . . Special Melee Weapon 2 | . 2 Unidentified Prototypes . | . . Parts Lost 5 | . 5 Power . | . . Propulsion 1 | . 1 Utility . | . . Weapon 4 | . 4 Highest Loss Streak 4 | . 4 To Critical Strikes . | . . Average Slot Usage (%) 38 | . 38 Flight 2 | . 2 Device 5 | . 5 Storage 3 | . 3 Processor 2 | . 2 Energy Gun 20 | . 20 Special Melee Weapon 4 | . 4 Peak Build Rating 5 | 1 5 Average Rating 2 | . 2 On Entrance . | . 1 Naked Turns . | . . Heaviest Build 24 | 2 24 Greatest Support 4 | 3 4 Greatest Overweight (x) 5 | . 5 Average Overweight (x) . | . . Largest Inventory Capacity 15 | 5 15 Average Capacity 7 | 5 7 Most Carried 5 | 2 5 Average Carried 3 | 1 3 Final Capacity 15 | 5 15 Final Carried 2 | 2 1 Class Distribution -------------------- 100% | Mutant Dominant Class ---------------- Mutant | -10/Materials Resources | -11 -10 ----------- Run | Yrd Mat Matter Collected 290 | 205 85 Remotely . | . . Salvage Created 366 | . 366 Parts 19 | . 19 Haulers Intercepted . | . . Recyclers Shooed 1 | . 1 Parts Field Recycled . | . . Retrieved Matter . | . . Parts Self-Destructed . | . . Prevented . | . . Kills | -11 -10 ------- Run | Yrd Mat Combat Hostiles Destroyed 9 | . 9 Guns 9 | . 9 Classes Destroyed 6 | . 6 Worker 1 | . 1 Builder 1 | . 1 Mechanic 1 | . 1 Watcher 1 | . 1 Swarmer 3 | . 3 Grunt 6 | . 6 Best Kill Streak 6 | . 6 Combat Bots Only 5 | . 5 Max Kills in Single Turn 2 | . 2 Gunslinging 1 | . 1 Exploded . | . . Melee . | . . Uniques/NPCs Destroyed . | . . Combat | -11 -10 -------- Run | Yrd Mat Hostile Shots Fired 62 | . 62 Missed 13 | . 13 Damage Taken 568 | . 568 Core 252 | . 252 Absorbed by Shields . | . . Core Remaining (%) 100 | 100 . Volleys Fired 48 | . 48 Largest 2 | . 2 Hottest 100 | . 100 Shots Fired 74 | . 74 Gun 74 | . 74 Cannon . | . . Launcher . | . . Special . | . . Kinetic . | . . Thermal 66 | . 66 Explosive . | . . Electromagnetic 8 | . 8 Robot Hit Streak 16 | . 16 Robot Miss Streak 3 | . 3 Penetration Max . | . . Secondary Targets 2 | . 2 Max Gunslinging Chain 1 | . 1 Shots Hit Robots 55 | . 55 Core Hits 25 | . 25 Critical Kills . | . . Critical Parts Destroyed . | . . Critical Strikes 4 | . 4 Burn 4 | . 4 Melee Attacks 5 | . 5 Impact . | . . Slashing . | . . Piercing . | . . Sneak Attacks 3 | . 3 Combat Hostiles . | . . Follow-up Attacks . | . . Damage Inflicted 656 | . 656 Guns 656 | . 656 Cannons . | . . Explosions . | . . Melee . | . . Ramming . | . . Kinetic . | . . Thermal 567 | . 567 Explosive . | . . Electromagnetic 89 | . 89 Impact . | . . Slashing . | . . Piercing . | . . Highest Corruption . | . . Average Corruption . | . . Corruption Purged . | . . Corruption Blocked . | . . Overload Shots . | . . Overflow Damage . | . . Projectiles . | . . Explosions . | . . Melee . | . . Knockbacks . | . . Impact . | . . Kinetic . | . . Secondary . | . . Self-Inflicted Damage . | . . Shots . | . . Rammed . | . . Targets Rammed . | . . Kicked . | . . Crushed . | . . Highest Temperature 189 | . 189 Average Temperature 68 | . 68 Received Heat Transfer 240 | . 240 Siege Activations . | . . Robots Corrupted . | . . Combat Hostiles . | . . Parts Fried . | . . Impact Corruptions . | . . Robots Melted . | . . Combat Hostiles . | . . Parts Melted 2 | . 2 Heat Transferred 1878 | . 1878 Parts Sabotaged . | . . Parts Stolen . | . . Parts Stripped . | . . Power Chain Reactions . | . . Alert | -11 -10 ------- Run | Yrd Mat Peak Influence 243 | . 243 Initial . | . . Average 96 | . 103 Maximum Alert Level 1 | . 1 Low Security (%) 78 | 100 77 Level 1 21 | . 22 Level 2 . | . . Level 3 . | . . Level 4 . | . . Level 5 . | . . High Security . | . . Max Security . | . . Squads Dispatched 2 | . 2 Investigation 1 | . 1 Extermination . | . . Reinforcement 1 | . 1 Assault . | . . Garrison . | . . Intercept . | . . Searches Triggered . | . . Construction Impeded . | . . Haulers Reinforced . | . . Active Scanning Responses . | . . Cargo Convoy Interrupts . | . . Stealth | -11 -10 --------- Run | Yrd Mat Distress Signals 2 | . 2 Communications Jammed . | . . Distress Signals . | . . Times Spotted 16 | . 16 Peak Tracking Total 4 | . 4 Tactical Retreats . | . . Traps | -11 -10 ------- Run | Yrd Mat Traps Triggered . | . . Indirectly . | . . Trap Hack Attempts . | . . Triggered . | . . Disarmed . | . . Reprogrammed . | . . Reused . | . . Traps Extracted . | . . Installed . | . . Triggered . | . . Machines | -11 -10 ---------- Run | Yrd Mat Machines Disabled . | . . Max in Single Turn . | . . Machines Repaired . | . . Machines Dismantled . | . . Machines Sabotaged . | . . Overloaded Fab Kills . | . . Hacking | -11 -10 --------- Run | Yrd Mat Machines Accessed 3 | . 3 Terminals 3 | . 3 Fabricators . | . . Repair Stations . | . . Recycling Units . | . . Scanalyzers . | . . Garrison Access . | . . Total Hacks 10 | . 10 Successful 6 | . 6 Failed 4 | . 4 Catastrophic 1 | . 1 Database Lockouts . | . . Manual 4 | . 4 Terminals 10 | . 10 Fabricators . | . . Repair Stations . | . . Recycling Units . | . . Scanalyzers . | . . Garrison Access . | . . Terminal Hacks 4 | . 4 Robot Analysis 2 | . 2 Prototype ID Bank 1 | . 1 Terminal Index 1 | . 1 Fabricator Hacks . | . . Repair Station Hacks . | . . Recycling Unit Hacks . | . . Scanalyzer . | . . Garrison Access Hacks . | . . Unauthorized Hacks 2 | . 2 Terminals 2 | . 2 Botnet 1 | . 1 Operators 1 | . 1 Fabricators . | . . Repair Stations . | . . Recycling Units . | . . Scanalyzers . | . . Garrison Access . | . . Data Cores Recovered . | . . Used . | . . Hacking Detections 3 | . 3 Full Trace Events 3 | . 3 Feedback Events . | . . Feedback Blocked . | . . Robot Schematics Acquired . | . . Robots Built . | . . Authchips . | . . Time . | . . Total Robot Build Rating . | . . Part Schematics Acquired . | . . Parts Built . | . . Authchips . | . . Time . | . . Total Part Build Rating . | . . Parts Repaired . | . . Time . | . . Parts Recycled . | . . Recycled Matter . | . . Retrieved Matter . | . . Retrieved Components . | . . Parts Scanalyzed . | . . Part Schematics Acquired . | . . Parts Damaged . | . . Bothacking | -11 -10 ------------ Run | Yrd Mat Used RIF Installer . | . . Robots Hacked 2 | . 2 Non-combat 2 | . 2 Combat . | . . Robot Hacks Applied 4 | . 4 parse_system 2 | . 2 no_distress 1 | . 1 check_alert 1 | . 1 Relay Couplers Released . | . . Fabnet Peak Effective % . | . . Robots Rewired . | . . Allies Hacked . | . . Hacks Repelled . | . . Allies | -11 -10 -------- Run | Yrd Mat Total Allies . | . . Largest Group . | . . Highest-Rated Group . | . . Highest-Rated Ally . | . . Total Orders . | . . Ally Attacks . | . . Total Damage . | . . Kills . | . . Allies Corrupted . | . . Allies Melted . | . . Intel | -11 -10 ------- Run | Yrd Mat Robot Analysis Total 2 | . 2 Derelict Logs Recovered . | . . Drone Launches . | . . Drone Recoveries . | . . Exploration | -11 -10 ------------- Run | Yrd Mat Turns Passed 390 | 26 364 Spaces Moved 332 | 46 286 Core 281 | 46 235 Treads . | . . Legs . | . . Wheels . | . . Hover . | . . Flight 51 | . 51 Fastest Speed 40 | 50 40 Average Speed 57 | 50 58 Slowest Speed 440 | 50 440 Overloaded Moves . | . . Propulsion Burnouts . | . . Robots Hopped . | . . Cave-ins Triggered . | . . Exploration Rate (%) 25 | 3 47 Regions Visited 1 Branch Regions . Pre-discovered Areas . | . . Known Exits Taken . | . . Unknown Exits Taken 1 | 1 . Scrap Searched . | . . Spaces Dug . | . . Terrain Destroyed . | . . Melee . | . . Projectile . | . . AOE . | . . Terrain Rammed . | . . Walls Destroyed . | . . Machines Disabled . | . . Actions | -11 -10 --------- Run | Yrd Mat Total 452 | 48 404 Wait 47 | . 47 Move 331 | 45 286 Hop . | . . Pick Up 5 | 2 3 Fast Attach 4 | 1 3 Attach 7 | . 7 Detach 2 | . 2 Swap 2 | . 2 Drop 1 | . 1 Fire 48 | . 48 Melee 5 | . 5 Ram . | . . Kick . | . . Crush . | . . Escape Stasis . | . . Rewire . | . . Trap . | . . Miscellaneous . | . . Route ------- -11/Scrapyard -10/Materials (discovered 1 exit: [*Mat]) History --------- Turn | Location | Event 4 | -11/Scrapyard | Discovered new exit (range 15) 27 | -11/Scrapyard | Entered Materials 246 | -10/Materials | Discovered new exit (range 4) 300 | -10/Materials | Build established: Mutant 309 | -10/Materials | Core integrity fell below 50% 384 | -10/Materials | Core integrity fell below 20% 391 | -10/Materials | Destroyed by G-34 Mercenary with Small Laser Last Messages --------------- Aluminum Leg. 00320_ R-06 Scavenger collects Aluminum Leg. 00325_ R-06 Scavenger collects Lgt. Assault Rifle. 00328_ R-06 Scavenger collects Wheel. 00328_ R-06 Scavenger collects Lgt. Ion Engine. 00332_ Acquired Signal Interpreter. 00354_ G-34 Mercenary destroyed. 00354_ Switching to secondary target: G-47 Trooper. 00356_ EM Pulse Gun destroyed. 00361_ G-47 Trooper suffers critical hit (Burn). 00375_ Flight Unit destroyed. 00377_ Med. Laser destroyed. 00379_ R-06 Scavenger collects Corrupted Aluminum Leg. 00384_ G-47 Trooper suffers critical hit (Burn). 00387_ G-47 Trooper heat damages Lgt. Nuclear Core. 00389_ Med. Laser destroyed. Map ----- +----------------------------------------------------+ | ??????????????? ""????# # #??????????# ## | | ??????????????? ??????# # #??????????# #### | | ???????????????#+###### + #??????????# #??? | | ???????????????# # "Y" #??????????# #??? | | ???????????????# # """ #??????????# #??? | | ???????????????# # #??????????# #??? | | ???????????????######## ########??????????# #??? | | ??????????????????##### #???????########### #??? | | ????????????????# # #% %#???????# # #??? | | ????????????????# *% #???????# # #??? | | ????????????????# *#% #???????# # #??? | | ????????????????## # #???????# [ + #?## | | ???????????????######## ##############+#### #?# | | ???????????????# # # #?????# #### ### | | ???????????????# #% # #?????# ## # | | ???????????????# # # #?????# ## # | | ???????????????# = + + #?????# ## + | | ???????????????# #u # #?????# ## # | | ???????????????# # # #?????# ## # | | ???????????????######## ########?????# ### ## | | ??????????????????????# #???????????##!### ## | | ??????????????????????# ############# % ## ### | | ??????????????????????#u a ## #?? | | ??????????????????????# ############# ## #?? | | ??????????????????????# #???????????##%### #?? | | ???????????????########r @#????????????# #?# #?? | | ???????? #????????????# #?# #?? | | ???????? gg###????????????# #?# #?? | | ???????? #????????####### #?# #?? | | ?????????############## #????????# # #?# #?? | | ??????????????????????# #????????# + #?# #?? | | ??????????????????????# #????????#""" # ### #?? | | ??????????????????????# #????????#""" # #T# ### | | ??????????????????????# #????????#""" # # | | ??????????????????????# #????????#""" + # | | ??????????????????????? ?????????# # / | | ??????????????????????? ?????????#""" # """ # | | ??????????????????????? ?????????#""" #! """ # | | ??????????????????????? ?????????#""" # """ # | | ??????????????????????? ?????????#""" # ## | | ??????????????????????? ?????????# # # | | ??????????????????????? ?????????######## ### # | | ????????????????????????????????????????# #?# # | | ???????????????????????????????????######o### #! | | ??????????????????????????????????##! %% # # | | ??????????????????????????????????#! [ # + | | ??????????????????????????????????# # ## | | ??????????????????????????????????#! # # | | ??????????????????????????????????#! # # | | ??????????????????????????????????##! ####### # | +----------------------------------------------------+ Best States ------------- Heat Dissipation 25 Energy Generation 5 Energy Capacity 100 Matter Stores 300 Matter Capacity 300 Sight Range 16 Terrain Scan Density 10 Evasion (%) 62 Item Schematics ----------------- None Robot Schematics ------------------ None Fabricated ------------ Nothing Alien Tech Used ----------------- None Achievements -------------- None Challenges ------------ None Game ------ Seed EnergySpreadProtomatter Manual? 0 Play Time 00:10:24 Cumulative 110.6 hours Start 2024.10.09 @ 21:49:40 End 2024.10.09 @ 21:55:07 Sessions 1 Manual Loads 0 Difficulty Rogue Special Mode None Game No. 70 Rogue 34 Adventurer 36 Explorer 0 Win Type - Total 2 Types 2/0/0/0/0/0/0/0/0 Lore% 51 Gallery% 56 Achievement% 51 Wizard Run 0 Options --------- Layout 1 ASCII 0 Keyboard 0 Movement Numpad Keybinds 0 Fullscreen 1 Font 48/Smallcaps Map View 50x35 Zoom Use 0% Tactical HUD 1 Map Filters NONE Filters NONE Steam 1 RUN: 003dc05a-63f8-4f09-8af8-e3cfd3b9b13e